Workbook

Sheet Data_Input
B2: PSC BEAM GIRDER BRIDGE - Korean Roadway Bridge Standard (2016) | W2: MAPI-KEY :
W3: base URL : | X3: https://moa-engineers.midasit.com:443/civil
B6: Geometry
Y23: Symbol | Z23: Unit | AA23: Values | AF23: Area | AG23: Permeter | AH23: Notaional
Y24: L1 | Z24: m | AA24: =P47+R63/2+I63+ROUND(AA40/2/TAN(RADIANS(AA31)),3) -> 30.252 | AE24: TypGirder | AF24: =AA40*AA43+(AA40+AA42)*AA44/2+AA42*AA45+(AA41+AA42)*AA46/2+AA41*AA47 -> 0.6714 | AG24: =AA40+AA43*2+SQRT(AA44^2+((AA40-AA42)/2)^2)*2+AA45*2+SQRT(AA46^2+((AA41-AA42)/2)^2)*2+AA47*2+AA41 -> 5.895069699 | AH24: =ROUND(2*AF24/AG24,4) -> 0.2278
Y25: L2 | Z25: m | AA25: =P47+R63 -> 30 | AE25: EndGirder | AF25: =AA40*AA43+(AA40+AA41)*AA48/2+AA41*AA49 -> 1.327368 | AG25: =AA40+AA43*2+SQRT(AA48^2+((AA40-AA41)/2)^2)*2+AA49*2+AA41 -> 5.38658479 | AH25: 0.4928
Y26: LT | Z26: m | AA26: =AA24*2+AA25 -> 90.504 | AE26: MidSlab | AF26: =AA27*I67 -> 0.756 | AG26: =AA27*2+I67*2 -> 6.78 | AH26: 0.223
Y27: B1 | Z27: m | AA27: 3.15 | AE27: EndSlab | AF27: =(AA27/2+AA28+AA29)*I67 -> 0.648 | AG27: =(AA27/2+AA28+AA29)*2+I67*2 -> 5.88 | AH27: 0.2204
Y28: B2 | Z28: m | AA28: 0.625 | AE28: Continuity | AF28: =R62*AA41 -> 1.1682 | AG28: =R62*2+AA41*2 -> 4.86 | AH28: 0.4807
Y29: B3 | Z29: m | AA29: 0.5 | AE29: Slab | AF29: =I67*1 -> 0.24 | AG29: =I67*2+1*2 -> 2.48 | AH29: 0.1935
Y30: BT | Z30: m | AA30: =AA27*7+AA28*2+AA29*2 -> 24.3 | AE30: Cross1 | AF30: =(I61+I62)*(I65+I66) -> 1.7 | AG30: =(I61+I62)*2+(I65+I66)*2 -> 5.7 | AH30: 0.5965
Y31: R | Z31: degree | AA31: 60 | AE31: Cross2 | AF31: =R61*R62 -> 1.239 | AG31: =R61*2+R62*2 -> 4.94 | AH31: 0.5016
O34: Plan View
AE37: MIDDLE | AG37: END | AL37: CONTINUITY
AE38: PSC_A | AF38: PSC_B | AG38: PSC_A | AH38: PSC_B | AI38: SLAB1 | AJ38: SLAB2 | AK38: MATL | AL38: PSC_A | AM38: PSC_B
Y39: Symbol | Z39: Unit | AA39: Values | AE39: =AA43 -> 0.18 | AF39: =AA42/2 -> 0.1 | AG39: =AE39 -> 0.18 | AH39: =AA41/2-AG44 -> 0.329 | AI39: =AA27 -> 3.15 | AJ39: =AA27/2+AA28+AA29 -> 2.7 | AK39: =ROUNDUP(G88/K88,4) -> 1.0828 | AL39: =AG39 -> 0.18 | AM39: =AH39 -> 0.329
Y40: SB1 | Z40: m | AA40: 0.7 | AE40: =AA44 -> 0.1 | AF40: =AA40/2 -> 0.35 | AG40: =AA48 -> 0.0084 | AH40: =AA40/2 -> 0.35 | AI40: =I67 -> 0.24 | AJ40: =I67 -> 0.24 | AK40: =ROUNDUP(G87/K87,4) -> 1 | AL40: =AG40 -> 0.0084 | AM40: =AH40 -> 0.35
N41: Symbol | O41: Unit | P41: Values | Y41: SB2 | Z41: m | AA41: 0.66 | AE41: 0 | AF41: 0 | AG41: 0 | AH41: 0 | AK41: =ROUNDUP(G89,4) -> 0.1667 | AL41: =AG41 -> 0 | AM41: 0
N42: G1 | O42: m | P42: 1 | Y42: SB3 | Z42: m | AA42: 0.2 | AE42: 0 | AF42: 0 | AG42: 0 | AH42: 0 | AK42: =ROUNDUP(K89,4) -> 0.1667 | AL42: =AG42 -> 0 | AM42: 0
N43: G2 | O43: m | P43: 3.4 | Y43: SH1 | Z43: m | AA43: 0.18 | AE43: =AA45 -> 1.27 | AF43: =AA41/2 -> 0.33 | AG43: =AA49-AA47-AG44 -> 1.5806 | AH43: =AA41/2 -> 0.33 | AK43: =ROUNDUP(G90/K90,4) -> 1 | AL43: =R62-AL40-AL39-AL47-AL44 -> 1.3506 | AM43: 0.33
N44: G3 | O44: m | P44: 10.17 | Y44: SH2 | Z44: m | AA44: 0.1 | AE44: =AA46 -> 0.22 | AF44: 0 | AG44: 0.001 | AH44: 0 | AL44: =AG44 -> 0.001 | AM44: 0
N45: G4 | O45: m | P45: 0.23 | Y45: SH3 | Z45: m | AA45: 1.27 | AE45: 0 | AF45: 0 | AG45: 0 | AH45: 0 | AL45: =AG45 -> 0 | AM45: 0
N46: G5 | O46: m | P46: 0.15 | Y46: SH4 | Z46: m | AA46: 0.22 | AE46: 0 | AG46: 0 | AL46: =AG46 -> 0
N47: GT | O47: m | P47: =SUM(P42:P46)*2 -> 29.9 | Y47: SH5 | Z47: m | AA47: 0.23 | AE47: =AA47 -> 0.23 | AG47: =AA47 -> 0.23 | AL47: =AG47 -> 0.23
N48: BR | O48: m | P48: 0.4 | Y48: SH6 | Z48: m | AA48: 0.0084
N49: BH | O49: m | P49: 0.4 | Y49: SH7 | Z49: m | AA49: =AA50-AA48-AA43 -> 1.8116
Y50: ST | Z50: m | AA50: =SUM(AA43:AA47) -> 2
O55: Girder
G60: Symbol | H60: Unit | I60: Values | P60: Symbol | Q60: Unit | R60: Values | Y60: Symbol | Z60: Unit | AA60: Values
G61: ET1 | H61: m | I61: 0.3 | P61: CB | Q61: m | R61: 0.7 | Y61: CR | Z61: m | AA61: 0.53
G62: ET2 | H62: m | I62: 0.55 | P62: CH | Q62: m | R62: 1.77 | Y62: CD | Z62: m | AA62: 0.2163
G63: [Min] EB | H63: m | I63: 0.1 | P63: IG | Q63: m | R63: 0.1 | Y63: TK | Z63: m | AA63: 0.008
G64: EB at Center | H64: m | I64: =ROUND(AA40/2/TAN(RADIANS(AA31)),3)+I63 -> 0.302 | P64: TS | Q64: m | R64: =I67 -> 0.24 | Y64: TS | Z64: m | AA64: =R64 -> 0.24
G65: EH1 | H65: m | I65: 0.16
G66: EH2 | H66: m | I66: =AA50-I65 -> 1.84
G67: TS | H67: m | I67: 0.24
G68: BR | H68: m | I68: =P48 -> 0.4
F72: Cross Beam (End) | O72: Cross Beam (Pier) | X72: Cross Beam (Middle)
B74: Unit | G74: Structure Type | P74: Prestressing Layout
B76: Force | C76: Distance | D76: Heat | E76: Temperature | G76: Type | H76: Mass Control Parameter | L76: Mass (Self.W) | M76: Gravity Acc | N76: Initial Temp. | P76: Prestressing Tendon | S76: Unit | T76: Values
M77: =IF(C78="mm","[mm/sec²]",IF(C78="cm","[cm/sec²]",IF(C78="m","[m/sec²]",IF(C78="in","[in/sec²]",IF(C78="ft","[ft/sec²]"))))) -> [m/sec²] | N77: =IF(E78="C","[C]",IF(E78="F","[F]")) -> [C] | P77: Ultimate Strength | S77: MPa | T77: 1860
B78: kN | C78: m | D78: kcal | E78: C | G78: 3-D | H78: Lumped Mass | J78: No option | L78: Convert to X-Y-Z | M78: =IF(C78="mm",9806,IF(C78="cm",980.6,IF(C78="m",9.806,IF(C78="in",386.063,IF(C78="ft",32.1719))))) -> 9.806 | N78: 0 | P78: Yield Strength | S78: MPa | T78: 1580
P79: Tendon area | S79: mm2 | T79: =98.71*12 -> 1184.52
B80: Materials | P80: Sheath diameter | S80: mm | T80: 66
P81: Curvature Friction Factor | T81: 0.19
B82: Concrete | F82: Unit | G82: Girder | I82: Cross Beam | K82: Slab | M82: Slab Dummy | P82: Wobble Friction Factor | S82: 1/m | T82: 0.005
B83: Material ID | G83: 101 | I83: 102 | K83: 103 | M83: 104 | P83: Anchorage Slip - Begin | S83: mm | T83: 6
B84: Strength Class | G84: C45 | I84: C45 | K84: C35 | M84: C35 | P84: Anchorage Slip - End | S84: mm | T84: 6
B85: Characteristic compressive strength | F85: MPa | G85: =RIGHT(G84,2)*1 -> 45 | I85: =RIGHT(I84,2)*1 -> 45 | K85: =RIGHT(K84,2)*1 -> 35 | M85: =RIGHT(M84,2)*1 -> 35 | P85: Relaxations Coefficient | T85: Ordinary
B86: Mean compressive strength | F86: MPa | G86: =IF(G85<=40,G85+4,IF(G85>=60,G85+6,IF(AND(G85>40,G85<60),2/20*(G85-40)+4+G85))) -> 49.5 | I86: =IF(I85<=40,I85+4,IF(I85>=60,I85+6,IF(AND(I85>40,I85<60),2/20*(I85-40)+4+I85))) -> 49.5 | K86: =IF(K85<=40,K85+4,IF(K85>=60,K85+6,IF(AND(K85>40,K85<60),2/20*(K85-40)+4+K85))) -> 39 | M86: =IF(M85<=40,M85+4,IF(M85>=60,M85+6,IF(AND(M85>40,M85<60),2/20*(M85-40)+4+M85))) -> 39
B87: Slef-Weight Density for defining Elastic Modulus | F87: kg/m³ | G87: 2300 | I87: 2300 | K87: 2300 | M87: 2300
B88: Concrete Elastic Modulus | F88: MPa | G88: =0.077*G87^1.5*(G86^(1/3)) -> 31185.3684 | I88: =0.077*I87^1.5*(I86^(1/3)) -> 31185.3684 | K88: =0.077*K87^1.5*(K86^(1/3)) -> 28802.97505 | M88: =0.077*M87^1.5*(M86^(1/3)) -> 28802.97505 | P88: Tendon Profile & Jacking Stress | T88: Station | U88: Tendon 01 | W88: Tendon 02 | Y88: Tendon 03 | AA88: Tendon 04
B89: Poisson's Ratio | G89: =1/6 -> 0.1666666667 | I89: =1/6 -> 0.1666666667 | K89: =1/6 -> 0.1666666667 | M89: =1/6 -> 0.1666666667 | U89: Horizontal | V89: Vertical | W89: Horizontal | X89: Vertical | Y89: Horizontal | Z89: Vertical | AA89: Horizontal | AB89: Vertical
B90: Thermal Coefficient | F90: 1/C | G90: =0.00001 -> 1e-05 | I90: =0.00001 -> 1e-05 | K90: =0.00001 -> 1e-05 | M90: =0.00001 -> 1e-05 | T90: 0.15 | U90: 0 | V90: -0.5 | W90: 0 | X90: -0.914 | Y90: 0 | Z90: -1.3 | AA90: 0 | AB90: -1.706
B91: Weight Density for loading | F91: kN/m³ | G91: =G92*$M$78 -> 24.515 | I91: =I92*$M$78 -> 24.515 | K91: =K92*$M$78 -> 24.515 | M91: =M92*$M$78 -> 0 | T91: 2.95 | U91: 0 | V91: -0.945 | W91: 0 | X91: -1.254 | Y91: -0.0099 | Z91: -1.507 | AA91: 0.0099 | AB91: -1.774
B92: Mass Density for loading | F92: kN/m³/g | G92: 2.5 | I92: 2.5 | K92: 2.5 | M92: 0 | T92: 5.95 | U92: 0 | V92: -1.319 | W92: 0 | X92: -1.539 | Y92: -0.0429 | Z92: -1.681 | AA92: 0.0429 | AB92: -1.831
B93: Relative Humidity | F93: % | G93: 70 | I93: 70 | K93: 70 | M93: 70 | T93: 8.95 | U93: 0 | V93: -1.586 | W93: 0 | X93: -1.742 | Y93: -0.0967 | Z93: -1.806 | AA93: 0.0967 | AB93: -1.872
B94: Type of Cements | G94: 1st Class (Moist Cured) | I94: 1st Class (Moist Cured) | K94: 1st Class (Moist Cured) | M94: 1st Class (Moist Cured) | T94: 11.95 | U94: 0 | V94: -1.747 | W94: 0 | X94: -1.864 | Y94: -0.1353 | Z94: -1.88 | AA94: 0.1353 | AB94: -1.897
B95: Age of concrete at the beginning of shrinkage | F95: days | G95: 3 | I95: 3 | K95: 3 | M95: 3 | T95: 14.95 | U95: 0 | V95: -1.8 | W95: 0 | X95: -1.905 | Y95: -0.15 | Z95: -1.905 | AA95: 0.15 | AB95: -1.905
P96: Prestressing force | T96: 17.95 | U96: 0 | V96: -1.747 | W96: 0 | X96: -1.864 | Y96: -0.1353 | Z96: -1.88 | AA96: 0.1353 | AB96: -1.897
B97: Steel | F97: Unit | G97: Prestressing | I97: Cross Beam | P97: Tendon 01 | Q97: 1430 | R97: kN | T97: 20.95 | U97: 0 | V97: -1.586 | W97: 0 | X97: -1.742 | Y97: -0.0967 | Z97: -1.806 | AA97: 0.0967 | AB97: -1.872
B98: Material ID | G98: 201 | I98: 202 | P98: Tendon 02 | Q98: 1388 | R98: kN | T98: 23.95 | U98: 0 | V98: -1.319 | W98: 0 | X98: -1.539 | Y98: -0.0429 | Z98: -1.681 | AA98: 0.0429 | AB98: -1.831
B99: Strength Class | G99: SWPC7B | I99: SNT355 | P99: Tendon 03 | Q99: 1342 | R99: kN | T99: 26.95 | U99: 0 | V99: -0.945 | W99: 0 | X99: -1.254 | Y99: -0.0099 | Z99: -1.507 | AA99: 0.0099 | AB99: -1.774
B100: Elastic modulus | F100: MPa | G100: 200000 | I100: 210000 | P100: Tendon 04 | Q100: 1291 | R100: kN | T100: 29.75 | U100: 0 | V100: -0.5 | W100: 0 | X100: -0.914 | Y100: 0 | Z100: -1.3 | AA100: 0 | AB100: -1.706
B101: Poisson's Ratio | G101: 0.3 | I101: 0.3
B102: Thermal Coefficient | F102: 1/C | G102: 1.2e-05 | I102: 1.2e-05 | P102: Vehicle loads
B103: Weight Density | F103: kN/m³ | G103: =G104*$M$78 -> 76.9771 | I103: =I104*$M$78 -> 76.9771
B104: Mass Density | F104: kN/m³/g | G104: 7.85 | I104: 7.85
P105: 0.45 | S105: =(AA30-P105-V105-AB105)/2 -> 11.407 | V105: 0.586 | Y105: =S105 -> 11.407 | AB105: =P105 -> 0.45
B106: Superimposed Dead Loads
B108: Loads | H108: y1 | I108: y2 | J108: Area | K108: Width | L108: Thickness | M108: Unit Weight | N108: Pressure
H109: (m) | I109: (m) | J109: (m2) | K109: (m) | L109: (m) | M109: (kN/m3) | N109: (kN/m2)
B110: Guardrail | F110: Left side | H110: =LL_W3/2+LL_W2 -> 11.7 | I110: =H110+LL_W1 -> 12.15 | J110: 0.41995 | K110: 0.45 | L110: - | M110: =2.5*9.806 -> 24.515 | N110: =J110*M110/K110*-1 -> -22.87794278
F111: Right side | H111: =I110*-1 -> -12.15 | I111: =H110*-1 -> -11.7 | J111: 0.41995 | K111: 0.45 | L111: - | M111: =2.5*9.806 -> 24.515 | N111: =J111*M111/K111*-1 -> -22.87794278
F112: Middle | H112: =LL_W3/2*-1 -> -0.293 | I112: =LL_W3/2 -> 0.293 | J112: 0.41415 | K112: 0.586 | L112: - | M112: =2.5*9.806 -> 24.515 | N112: =J112*M112/K112*-1 -> -17.32574616
B113: Pavement | F113: Left side | H113: =(LL_W3/2+Y105)*-1 -> -11.7 | I113: =LL_W3/2*-1 -> -0.293 | J113: - | K113: - | L113: =M125 -> 0.05 | M113: =2.3*9.806 -> 22.5538 | N113: =L113*M113*-1 -> -1.12769
F114: Right side | H114: =I113*-1 -> 0.293 | I114: =H113*-1 -> 11.7 | J114: - | K114: - | L114: =L113 -> 0.05 | M114: =2.3*9.806 -> 22.5538 | N114: =L114*M114*-1 -> -1.12769
B116: Wind Loads | P116: * Traffic loads on left side/ Right side are considered automatically | AA116: Lane width (m) | AB116: Wheel Spacing (m)
P117: * KL-510TRK/KL-510LNE
K118: Deck Width (B) | M118: =AA30 -> 24.3 | N118: m | AA118: 3 | AB118: 1.8
K119: Deck Height (D) | M119: =SUM(M123:M126) -> 3.56 | N119: m
K120: B/D ratio | M120: =M118/M119 -> 6.825842697 | P120: Construction Stage | Y120: Elastomeric Bearing
K121: Wind Pressure, p | M121: =IF(AND(M120>=1,M120<8),(4-0.2*M120),IF(M120>=8,2.4)) -> 2.634831461 | N121: kPa
P122: Construction Stage | V122: Duaration | W122: Date | Y122: Position | Z122: Vertical Stiffness | AA122: Horizontal Stiffness
K123: Girder | L123: h1 | M123: =AA50 -> 2 | N123: m | P123: CS1 | Q123: Active Girder | V123: 28 | W123: 28
K124: Slab | L124: h2 | M124: =I67 -> 0.24 | N124: m | P124: CS2 | Q124: Prestressing tendon | V124: 30 | W124: =W123+V124 -> 58 | Z124: kN/m | AA124: kN/m
K125: Pavement | L125: h3 | M125: 0.05 | N125: m | P125: CS3 | Q125: Loading Wet Slab Concrete | V125: 30 | W125: =W124+V125 -> 88 | Y125: Abutment | Z125: 378200 | AA125: 1797
K126: Guardrail | L126: h4 | M126: =1.32-0.05 -> 1.27 | N126: m | P126: CS4 | Q126: Active Slab and Cross Beam | V126: 30 | W126: 118 | Y126: Pier | Z126: 756300 | AA126: 3595
P127: CS5 | Q127: Loading SIDL | V127: 0 | W127: 118
K128: No. | L128: P | M128: e | N128: M | P128: CS6 | Q128: 50 years | V128: 18250 | W128: 18368
L129: (kN/m) | M129: (m) | N129: (kN.m/m)
K130: 1 | L130: =SUM(M124:M126)*M121 -> 4.110337079 | M130: =SUM(M124:M126)/2-M124 -> 0.54 | N130: =L130*M130 -> 2.219582022 | P130: Load Combinations | Y130: Settlement
K131: 2 | L131: =M121*M126 -> 3.346235955 | M131: =M126/2+M125 -> 0.685 | N131: =L131*M131 -> 2.292171629
K132: 3 | L132: =M121*M123 -> 5.269662921 | M132: =M123/2+M124 -> 1.24 | N132: =L132*M132 -> 6.534382022 | P132: Loads | S132: ULS | T132: SLS 1 | U132: SLS 3 | V132: SLS 4 | W132: SLS 5 | Y132: Settlement | Z132: 10 | AA132: mm
P133: Dead Load | R133: DC | S133: 1.25 | T133: 1 | U133: 1 | V133: 1 | W133: 1
P134: Superimosed dead load | R134: SIDL | S134: 1.5 | T134: 1 | U134: 1 | V134: 1 | W134: 1
P135: Traffic Loads | R135: LL | S135: 1.8 | T135: 1 | U135: 0.8 | V135: 0 | W135: 0
P136: Settlement | R136: SD | S136: 1 | T136: 1 | U136: 1 | V136: 1 | W136: 1
P137: Wind loads | R137: WS | S137: 0 | T137: 0.3 | U137: 0 | V137: 0.7 | W137: 0
